bitfinex/quotes_SOLUSD_20260202
["timestamp","ask_amount","ask_price","bid_price","bid_amount"]
[1770059202068,8.80251619,104.58,104.54,0.45487671]
[1770059202269,8.80251619,104.57,104.54,0.45487671]
[1770059202471,8.80251619,104.58,104.54,0.45487671]
[1770059204059,18.3648059,104.58,104.54,0.45487671]
[1770059204256,8.80251619,104.59,104.55,0.45487671]
[1770059204669,8.80251619,104.6,104.57,0.45487671]
[1770059205964,8.80251619,104.59,104.57,0.45487671]
[1770059206876,8.80251619,104.6,104.57,0.45487671]
[1770059207658,8.80251619,104.6,104.57,10.01781145]
[1770059207865,8.80251619,104.6,104.57,0.45487671]
[1770059208477,8.80251619,104.6,104.55,32.71398711]
[1770059208478,9.00251619,104.59,104.54,18.82262146]
[1770059208676,8.80251619,104.58,104.55,0.45487671]
[1770059209085,8.80251619,104.57,104.55,0.45487671]
[1770059212072,8.80251619,104.58,104.55,0.45487671]
[1770059218683,4.47527085,104.61,104.56,0.49449062]
[1770059218875,18.56225309,104.61,104.57,0.49449062]
[1770059219383,18.56225309,104.61,104.55,9.56473131]
[1770059219384,0.4,104.64,104.58,9.29700681]
[1770059219687,8.80251619,104.63,104.59,0.49449062]
[1770059219986,9.00251619,104.63,104.59,0.49449062]
[1770059220190,8.80251619,104.62,104.59,0.49449062]
[1770059220490,8.99231617,104.63,104.59,0.49449062]
[1770059220779,18.5501621,104.63,104.59,0.49449062]
[1770059221777,8.79231617,104.61,104.59,0.49449062]
[1770059221976,8.99231617,104.61,104.57,10.05712782]
[1770059222480,3.51827714,104.61,104.58,0.49449062]
[1770059224804,3.71827714,104.61,104.58,0.49449062]
[1770059224974,3.51827714,104.6,104.58,0.49449062]
[1770059227303,9.75894917,104.62,104.58,0.49449062]
[1770059227591,3.51827714,104.6,104.58,0.49449062]
[1770059228190,3.51827714,104.6,104.57,1.6]
[1770059228388,8.79821143,104.59,104.57,1.6]
[1770059228894,8.79821143,104.6,104.57,1.6]
[1770059229391,8.79821143,104.59,104.57,1.6]
[1770059229694,8.79821143,104.58,104.54,18.36343259]
[1770059229894,8.79821143,104.56,104.52,18.3652343]
[1770059230190,8.79821143,104.56,104.53,9.56641479]
[1770059230369,8.79821143,104.56,104.53,10.06090541]
[1770059230776,9.25087627,104.57,104.53,10.06090541]
[1770059231176,8.79821143,104.56,104.53,10.06090541]
[1770059231990,9.25087627,104.57,104.53,10.06090541]
[1770059232575,8.79821143,104.56,104.53,0.49449062]
[1770059232979,9.25087627,104.55,104.52,0.49449062]
[1770059233187,8.79821143,104.55,104.52,0.49449062]
[1770059233480,8.79821143,104.55,104.53,0.49449062]
[1770059234190,9.25087627,104.56,104.53,0.49449062]
[1770059234496,8.79821143,104.55,104.53,0.49449062]
[1770059234801,9.25087627,104.55,104.51,10.06245949]
[1770059235097,0.45266484,104.54,104.51,10.06245949]
[1770059235297,0.45266484,104.54,104.51,10.36245949]
[1770059235484,0.45266484,104.54,104.51,0.79449062]
[1770059235683,18.81594085,104.55,104.51,0.79449062]
[1770059235880,10.01610473,104.57,104.53,0.49449062]
[1770059236082,0.45266484,104.57,104.53,0.49449062]
[1770059236288,9.25087627,104.56,104.53,0.49449062]
[1770059236882,23.90370437,104.59,104.54,0.49449062]
[1770059236883,10.01422208,104.59,104.54,0.49449062]
[1770059237089,8.79821143,104.59,104.56,0.49449062]
[1770059237413,9.25087627,104.61,104.57,0.49449062]
[1770059237616,9.25087627,104.63,104.59,0.49449062]
[1770059237917,9.25087627,104.61,104.57,0.49449062]
[1770059238200,0.45266484,104.61,104.58,0.49449062]
[1770059238404,9.25087627,104.61,104.57,0.49449062]
[1770059238704,9.25087627,104.59,104.56,0.49449062]
[1770059238878,9.25087627,104.6,104.56,0.49449062]
[1770059239279,8.79821143,104.59,104.56,0.49449062]
[1770059239500,9.25087627,104.58,104.55,0.49449062]
[1770059239702,0.45266484,104.58,104.55,0.49449062]
[1770059240005,9.26849846,104.59,104.55,0.49449062]
[1770059240203,33.4610413,104.6,104.57,0.49272963]
[1770059240204,8.79821143,104.6,104.57,0.49272963]
[1770059240380,18.82830389,104.61,104.57,0.49272963]
[1770059240582,18.82830389,104.61,104.57,9.29094106]
[1770059242788,8.79821143,104.62,104.59,0.49272963]
[1770059242982,9.26849846,104.62,104.59,0.49272963]
[1770059243187,8.79821143,104.61,104.58,0.49272963]
[1770059243406,9.26849846,104.62,104.58,0.49272963]
[1770059243608,8.79821143,104.62,104.58,0.49272963]
[1770059243780,8.79821143,104.63,104.6,0.49272963]
[1770059244901,0.2,104.64,104.62,0.49272963]
[1770059245089,10.22688855,104.64,104.6,0.49272963]
[1770059245289,8.99821143,104.64,104.61,0.49272963]
[1770059247402,8.79821143,104.63,104.6,0.49272963]
[1770059247610,9.26849846,104.62,104.58,0.49272963]
[1770059248406,33.64826411,104.64,104.56,10.05647401]
[1770059248407,9.26849846,104.6,104.56,10.05647401]
[1770059248601,9.26849846,104.6,104.57,0.49272963]
[1770059250307,47.98287461,104.64,104.58,0.49272963]
[1770059250308,9.26849846,104.62,104.58,0.49272963]
[1770059250509,3.98776768,104.62,104.58,0.49272963]
[1770059251508,3.98776768,104.62,104.58,10.05469813]
[1770059251809,3.51748065,104.62,104.59,0.49272963]
[1770059252405,3.51748065,104.61,104.58,0.49272963]
[1770059252594,3.51748065,104.6,104.58,0.49272963]
[1770059255093,3.51748065,104.61,104.58,0.49272963]
[1770059257007,3.51748065,104.6,104.57,0.49272963]
[1770059257211,3.51748065,104.6,104.57,10.05568886]
[1770059258413,3.98776768,104.61,104.58,0.49272963]
[1770059258811,3.51748065,104.62,104.58,0.49272963]
[1770059259107,0.2,104.64,104.61,0.49272963]
[1770059259495,3.51748065,104.67,104.64,0.49272963]
[1770059259695,3.98776768,104.65,104.6,0.28432314]
[1770059259913,0.47028703,104.62,104.58,3.51748065]
[1770059260110,3.51748065,104.62,104.58,3.51748065]
[1770059260406,3.51748065,104.62,104.58,13.07897178]
[1770059260614,3.98776768,104.61,104.57,13.07974398]
[1770059260818,3.98776768,104.61,104.57,9.56226333]
[1770059261710,3.98776768,104.61,104.57,10.05499296]
[1770059262604,3.98776768,104.58,104.54,10.05792588]
[1770059262803,3.98776768,104.58,104.55,0.49272963]
[1770059263002,3.98776768,104.58,104.54,10.05807963]
[1770059263603,3.98776768,104.58,104.55,0.49272963]
[1770059263799,3.51748065,104.58,104.55,10.05750029]
[1770059264496,8.79995269,104.58,104.55,0.49272963]
[1770059265020,18.36211828,104.58,104.55,0.49272963]
[1770059265518,8.79995269,104.58,104.55,0.49272963]
[1770059265903,8.79995269,104.58,104.53,0.49272963]
[1770059265904,9.27023972,104.56,104.53,0.49272963]
[1770059266310,9.27023972,104.55,104.51,10.06072853]
[1770059266719,42.26736252,104.58,104.52,0.49272963]
[1770059266720,9.27023972,104.56,104.52,0.49272963]
[1770059266921,9.27023972,104.56,104.52,10.06023154]
[1770059267229,9.27023972,104.56,104.52,18.86018423]
[1770059267406,9.27023972,104.56,104.52,10.06023154]
[1770059269607,9.2828591,104.58,104.54,9.26211647]
[1770059269808,9.2828591,104.58,104.54,0.46216378]
[1770059271126,0.48159532,104.57,104.54,0.46216378]
[1770059271306,9.28154801,104.57,104.54,0.46216378]
[1770059272323,9.28154801,104.56,104.52,10.06040473]
[1770059272522,9.28154801,104.56,104.52,18.86035742]
[1770059272714,9.28154801,104.56,104.53,0.49324866]
[1770059275026,9.28154801,104.56,104.53,0.79324866]
[1770059276026,9.28154801,104.56,104.53,0.3]
[1770059278829,9.28154801,104.56,104.53,0.79324866]
[1770059279342,9.28154801,104.56,104.53,10.35987711]
[1770059279531,18.84459326,104.57,104.53,10.35987711]
[1770059279732,8.79995269,104.56,104.53,10.35987711]
[1770059279913,9.28154801,104.56,104.53,10.35987711]
[1770059280415,9.28154801,104.57,104.54,0.49324866]
[1770059280831,0.48159532,104.58,104.54,9.29320135]
[1770059281234,9.28154801,104.58,104.54,0.49324866]
[1770059281919,9.28154801,104.58,104.54,9.29320135]
[1770059282306,0.48159532,104.57,104.54,18.85834891]
[1770059282606,0.48159532,104.57,104.54,18.85807413]
[1770059282806,9.28127323,104.57,104.54,0.49324866]
[1770059283123,0.48159532,104.55,104.53,0.3]
[1770059283320,9.28127323,104.56,104.53,9.86661174]
[1770059283524,9.28127323,104.56,104.53,0.3]
[1770059283712,9.28127323,104.55,104.52,0.49324866]
[1770059284119,0.48159532,104.55,104.52,10.06044896]
[1770059284320,9.28127323,104.56,104.52,10.06044896]
[1770059284637,0.48159532,104.55,104.52,10.06044896]
[1770059285134,0.48159532,104.56,104.53,0.49324866]
[1770059285337,3.52170206,104.57,104.54,0.49324866]
[1770059285630,4.00329738,104.57,104.53,0.49324866]
[1770059286333,0.48159532,104.56,104.53,10.05979014]
[1770059286714,0.48159532,104.58,104.54,4.01495072]
[1770059286910,4.00329738,104.58,104.54,4.01495072]
[1770059287133,4.00329738,104.58,104.54,0.49324866]
[1770059287436,0.48159532,104.57,104.54,0.49324866]
[1770059287734,3.52170206,104.58,104.55,0.49324866]
[1770059287735,0.48159532,104.58,104.55,0.49324866]
[1770059287931,0.48159532,104.59,104.56,0.49324866]
[1770059288537,3.52170206,104.6,104.56,10.05707051]
[1770059288716,3.52170206,104.59,104.55,0.49324866]
[1770059288923,0.48159532,104.6,104.54,10.05848783]
[1770059288924,3.52170206,104.58,104.54,10.05848783]
[1770059289234,3.52170206,104.57,104.53,10.0594626]
[1770059289747,0.48159532,104.6,104.57,0.49324866]
[1770059290035,4.00329738,104.6,104.56,4.01495072]
[1770059290223,4.00329738,104.6,104.52,0.3]
[1770059290224,3.52170206,104.58,104.54,13.58019258]
[1770059290420,3.52170206,104.58,104.54,10.05849052]
[1770059290735,3.52170206,104.57,104.54,0.49324866]
[1770059291125,4.00329738,104.57,104.54,0.49324866]
[1770059291740,4.00329738,104.57,104.54,10.05896183]
[1770059292123,4.00329738,104.57,104.54,0.49324866]
[1770059292325,0.48159532,104.56,104.53,0.49324866]
[1770059292521,4.00329738,104.55,104.51,13.58293554]
[1770059292833,4.00329738,104.56,104.53,0.49324866]
[1770059293027,4.00329738,104.56,104.52,10.06063057]
[1770059293941,0.48159532,104.55,104.52,10.06063057]
[1770059294331,4.00329738,104.55,104.52,10.06063057]
[1770059295242,4.00329738,104.55,104.52,0.49324866]
[1770059295442,4.00329738,104.54,104.51,0.49324866]
[1770059296343,4.00329738,104.53,104.5,0.49324866]
[1770059296525,4.00329738,104.52,104.49,0.49324866]
[1770059297348,0.48159532,104.52,104.49,10.06349545]
[1770059297840,4.00329738,104.52,104.49,0.49324866]
[1770059298524,4.00329738,104.52,104.48,10.06403013]
[1770059299930,0.48368608,104.53,104.5,0.45914678]
[1770059300123,0.48368608,104.54,104.5,3.98084884]
[1770059300936,0.48368608,104.54,104.51,0.45914678]
[1770059301230,4.00538814,104.55,104.51,3.98084884]
[1770059301645,0.48368608,104.54,104.49,10.02906669]
[1770059301823,4.00538814,104.52,104.49,0.45914678]
[1770059302155,0.48368608,104.52,104.49,0.45914678]
[1770059302524,4.00538814,104.52,104.49,0.45914678]
[1770059302946,13.5731177,104.52,104.48,0.45914678]
[1770059304427,13.5731177,104.52,104.48,0.75914678]
[1770059305121,4.00538814,104.52,104.48,10.33028038]
[1770059306935,0.48368608,104.52,104.49,0.45914678]
[1770059307134,0.48368608,104.51,104.48,10.33028038]
[1770059307827,9.56713922,104.53,104.49,0.45914678]
[1770059307828,0.48368608,104.53,104.49,0.45914678]
[1770059308029,107.57527085,104.57,104.52,0.45914678]
[1770059308030,13.56883685,104.57,104.52,0.45914678]
[1770059308326,0.48368608,104.56,104.53,0.45914678]
[1770059308649,4.00538814,104.56,104.52,3.98084884]
[1770059309045,4.00538814,104.55,104.52,0.45914678]
[1770059309233,0.48368608,104.55,104.52,0.45914678]
[1770059309546,4.00538814,104.55,104.52,0.45914678]
[1770059309941,0.48368608,104.54,104.51,0.45914678]
[1770059310128,4.00538814,104.54,104.51,0.45914678]
[1770059311237,0.48368608,104.54,104.51,10.02751105]
[1770059318553,0.48368608,104.55,104.52,0.45914678]
[1770059319254,4.00538814,104.55,104.52,0.45914678]
[1770059322653,4.00538814,104.55,104.51,0.3]
[1770059322654,4.00538814,104.53,104.51,0.3]
[1770059322842,0.48368608,104.53,104.51,0.3]
[1770059323043,4.00538814,104.54,104.51,0.75914678]
[1770059323243,4.00538814,104.53,104.51,0.3]
[1770059323865,0.48368608,104.53,104.51,0.3]
[1770059324066,4.00538814,104.53,104.51,0.3]
[1770059324396,0.48368608,104.53,104.51,0.3]
[1770059324970,0.48368608,104.52,104.51,0.3]
[1770059326160,4.00538814,104.52,104.51,0.3]
[1770059326860,4.00538814,104.52,104.49,0.45914678]
[1770059327045,13.57307374,104.52,104.49,0.45914678]
[1770059327451,4.00538814,104.52,104.49,0.45914678]
[1770059327651,4.00538814,104.52,104.49,10.02924204]
[1770059327852,4.00538814,104.53,104.5,0.45914678]
[1770059329559,13.57206808,104.53,104.5,0.45914678]
[1770059330355,0.45006709,104.5,104.47,0.49765415]
[1770059330557,0.45006709,104.5,104.48,0.49765415]
[1770059330558,3.97176915,104.5,104.48,0.49765415]
[1770059330863,3.97176915,104.5,104.47,0.49765415]
[1770059333270,3.97176915,104.5,104.47,10.06970466]
[1770059333454,0.45006709,104.5,104.47,0.49765415]
[1770059334049,13.54147036,104.5,104.47,0.49765415]
[1770059334466,3.97176915,104.5,104.47,0.49765415]
[1770059336267,9.56885741,104.51,104.47,0.49765415]
[1770059336268,0.45006709,104.51,104.48,0.49765415]
[1770059336457,3.97176915,104.52,104.49,0.49765415]
[1770059336657,3.97176915,104.51,104.49,0.49765415]
[1770059337059,3.97176915,104.51,104.48,10.06859228]
[1770059337264,3.97176915,104.51,104.48,0.49765415]
[1770059338172,9.56759684,104.52,104.49,0.49765415]
[1770059338173,3.97176915,104.52,104.49,0.49765415]
[1770059338759,3.97176915,104.55,104.51,0.49765415]
[1770059338956,0.45006709,104.54,104.51,0.49765415]
[1770059339974,3.97176915,104.53,104.5,0.49765415]
[1770059340472,3.97176915,104.52,104.49,0.49765415]
[1770059341572,0.45006709,104.52,104.49,0.49765415]
[1770059344481,3.97398949,104.52,104.49,0.49765415]
[1770059348570,0.45006709,104.52,104.49,0.49765415]
[1770059351667,0.45006709,104.51,104.48,13.09477163]
[1770059351866,0.45006709,104.51,104.49,0.49765415]
[1770059353081,0.45006709,104.52,104.49,0.49765415]
[1770059353282,0.45006709,104.52,104.49,10.06759438]
[1770059353472,0.45006709,104.52,104.49,13.59151678]
[1770059353783,0.45006709,104.52,104.5,0.49765415]
[1770059354079,13.54017048,104.54,104.5,0.49765415]
[1770059354285,0.45006709,104.53,104.5,0.49765415]
[1770059357681,3.97398949,104.52,104.49,10.06759438]
[1770059358482,0.45006709,104.51,104.48,10.06835635]
[1770059359159,0.45006709,104.5,104.47,10.06929408]
[1770059359363,3.97398949,104.5,104.47,0.49765415]
[1770059359678,0.45006709,104.47,104.45,0.2]
[1770059359984,0.46268309,104.46,104.45,0.2]
[1770059360282,0.46268309,104.46,104.44,0.2]
[1770059360283,0.46268309,104.45,104.44,0.2]
[1770059360484,3.98660549,104.45,104.42,0.57635184]
[1770059361268,0.46268309,104.45,104.42,0.57635184]
[1770059361588,3.98660549,104.45,104.42,0.57635184]
[1770059362087,3.5239224,104.45,104.42,0.57635184]
[1770059362279,0.46268309,104.45,104.42,0.57635184]
[1770059362477,3.98660549,104.45,104.42,0.57635184]
[1770059363186,0.46268309,104.45,104.42,10.15296641]
[1770059363389,0.46268309,104.45,104.42,0.57635184]
[1770059367391,0.46268309,104.49,104.45,0.47635184]
[1770059367693,0.46268309,104.49,104.46,0.47635184]
[1770059368601,0.46268309,104.47,104.44,0.47635184]
[1770059369790,3.98660549,104.48,104.45,0.47635184]
[1770059370495,13.55786737,104.48,104.45,0.47635184]
[1770059370677,13.55786737,104.48,104.44,0.47635184]
[1770059371274,3.98660549,104.48,104.44,9.5746541]
[1770059371474,13.55781796,104.48,104.44,10.05100594]
[1770059372082,3.98660549,104.48,104.45,0.47635184]
[1770059372282,0.46268309,104.48,104.45,0.47635184]
[1770059372485,3.98660549,104.48,104.45,0.47635184]
[1770059377695,0.46268309,104.47,104.44,0.47635184]
[1770059378198,0.46268309,104.47,104.44,10.05068852]
[1770059378798,3.98660549,104.48,104.45,0.47635184]
[1770059379095,3.98660549,104.46,104.43,0.47635184]
[1770059379306,0.46268309,104.46,104.43,0.47635184]
[1770059380798,0.46268309,104.47,104.44,0.47635184]
[1770059384504,3.98660549,104.47,104.44,0.47635184]
[1770059385103,0.46268309,104.44,104.42,0.1]
[1770059385304,3.98660549,104.43,104.41,0.1]
[1770059387708,13.56152221,104.44,104.41,0.57635184]
[1770059389110,3.5239224,104.44,104.41,0.57635184]
[1770059389284,3.9875363,104.45,104.42,0.46900196]
[1770059389587,0.4636139,104.42,104.41,0.1]
[1770059389998,4.0109866,104.43,104.41,0.1]
[1770059390200,0.4870642,104.43,104.41,0.1]
[1770059390502,3.5239224,104.44,104.41,0.1]
[1770059390701,3.5239224,104.43,104.41,0.1]
[1770059390903,3.5239224,104.42,104.4,1e-08]
[1770059391083,3.5239224,104.41,104.38,0.1]
[1770059391279,9.57630571,104.43,104.38,0.6]
[1770059391586,13.10022811,104.43,104.39,0.5]
[1770059391784,3.5239224,104.42,104.39,0.5]
[1770059392312,3.5239224,104.42,104.38,0.6]
[1770059392809,3.5239224,104.41,104.38,0.6]
[1770059393005,3.5239224,104.42,104.38,0.6]
[1770059393309,3.5239224,104.43,104.4,0.5]
[1770059393686,3.5239224,104.43,104.39,0.5]
[1770059394089,23.93109541,104.47,104.41,0.5]
[1770059394308,3.5239224,104.45,104.41,0.5]
[1770059394486,3.5239224,104.44,104.41,0.5]
[1770059395006,3.5239224,104.45,104.41,0.5]
[1770059395507,13.09794926,104.45,104.41,0.5]
[1770059396707,3.5239224,104.45,104.41,9.57741556]
[1770059396893,3.5239224,104.46,104.42,0.5]
[1770059397088,3.5239224,104.5,104.43,0.5]
[1770059397392,3.5239224,104.5,104.42,3.5239224]
[1770059397393,3.5239224,104.47,104.44,0.5]
[1770059397607,13.09671091,104.47,104.44,0.5]
[1770059399006,3.5239224,104.47,104.44,0.5]
[1770059399390,3.5239224,104.49,104.45,0.5]
[1770059399810,13.09465782,104.49,104.45,0.5]
[1770059401106,3.5239224,104.47,104.44,0.5]
[1770059401325,3.5239224,104.47,104.39,43.67837713]
[1770059401326,3.5239224,104.46,104.43,0.5]
[1770059401522,3.5239224,104.45,104.42,0.5]
[1770059401891,3.5239224,104.44,104.42,0.5]
[1770059402408,8.82311447,104.44,104.42,0.5]
[1770059402599,8.82311447,104.46,104.42,0.5]
[1770059402803,8.82311447,104.47,104.43,0.5]
[1770059403393,9.57077186,104.49,104.44,0.5]
[1770059403594,8.82311447,104.47,104.44,0.5]
[1770059404818,8.82311447,104.47,104.44,10.07471506]
[1770059405003,9.57077186,104.49,104.45,0.5]
[1770059405203,8.82311447,104.48,104.45,0.5]
[1770059405924,8.82311447,104.49,104.45,0.5]
[1770059406091,18.39364085,104.49,104.45,0.5]
[1770059406294,8.82311447,104.48,104.45,0.5]
[1770059408305,18.39364085,104.49,104.45,0.5]
[1770059408503,8.82311447,104.48,104.45,0.5]
[1770059410631,18.39364085,104.49,104.45,0.5]
[1770059412029,9.56846234,104.51,104.46,0.5]
[1770059412230,18.39157681,104.51,104.47,0.5]
[1770059413631,8.82311447,104.51,104.47,0.5]
[1770059414140,8.82311447,104.5,104.47,0.5]
[1770059414832,8.82311447,104.48,104.45,0.5]
[1770059415027,8.82311447,104.47,104.44,0.5]
[1770059415528,8.82311447,104.48,104.44,0.5]
[1770059416427,8.82311447,104.49,104.45,0.5]
[1770059417322,9.56985049,104.5,104.45,0.5]
[1770059417635,8.82311447,104.48,104.45,0.5]
[1770059418206,8.82311447,104.48,104.45,9.57390223]
[1770059418409,8.82311447,104.48,104.46,0.5]
[1770059418809,8.82311447,104.49,104.46,0.5]
[1770059419224,9.56846234,104.51,104.46,0.5]
[1770059419527,8.82311447,104.51,104.47,9.32311447]
[1770059419733,8.82311447,104.53,104.49,0.5]
[1770059420118,18.39018718,104.53,104.49,0.5]
[1770059420320,8.82311447,104.54,104.51,0.5]
[1770059421131,8.82311447,104.52,104.49,0.5]
[1770059421947,8.82311447,104.53,104.49,0.5]
[1770059422228,8.82311447,104.52,104.49,0.5]
[1770059422534,18.39153517,104.52,104.49,0.5]
[1770059423423,9.5684207,104.52,104.49,0.5]
[1770059423626,18.39153517,104.52,104.49,0.5]
[1770059424518,9.5684207,104.52,104.49,0.5]
[1770059424810,13.09305787,104.52,104.48,0.5]
[1770059426239,3.52463717,104.49,104.46,0.5]
[1770059427632,13.0949347,104.49,104.46,0.5]
[1770059428041,9.57029753,104.49,104.46,0.5]
[1770059429247,13.0949347,104.49,104.45,0.5]
[1770059430719,3.52463717,104.49,104.46,0.5]
[1770059432841,3.52463717,104.52,104.47,4.02463717]
[1770059433138,3.52463717,104.55,104.51,0.5]
[1770059433339,0.2,104.56,104.53,0.5]
[1770059433639,3.52463717,104.54,104.51,0.5]
[1770059433817,3.52463717,104.53,104.49,0.5]
[1770059434024,3.52463717,104.52,104.49,0.5]
[1770059434341,3.52463717,104.51,104.49,0.5]
[1770059434635,8.81160727,104.5,104.46,0.5]
[1770059435036,8.81160727,104.51,104.47,0.5]
[1770059435346,8.81160727,104.51,104.48,0.5]
[1770059436341,8.81160727,104.49,104.46,0.5]
[1770059436842,8.81160727,104.49,104.47,0.5]
[1770059438940,18.38204784,104.49,104.47,0.5]
[1770059439241,8.81160727,104.5,104.47,0.5]
[1770059440039,8.81160727,104.53,104.5,0.5]
[1770059440340,8.81160727,104.54,104.51,0.5]
[1770059440640,18.3764088,104.55,104.51,0.5]
[1770059441230,8.81160727,104.53,104.5,0.5]
[1770059442628,18.37993217,104.52,104.48,0.5]
[1770059443041,42.29879937,104.52,104.48,0.5]
[1770059443245,42.29879937,104.52,104.47,0.5]
[1770059443246,8.81160727,104.51,104.47,0.5]
[1770059443640,33.4871921,104.52,104.47,0.5]
[1770059443641,8.81160727,104.5,104.47,0.5]
[1770059444749,18.38140366,104.5,104.47,0.5]
[1770059449650,8.81160727,104.51,104.47,0.5]
[1770059451351,8.81160727,104.49,104.45,0.5]
[1770059451729,18.38185431,104.5,104.46,0.5]
[1770059451943,18.38047892,104.51,104.47,0.5]
[1770059452148,8.81160727,104.5,104.47,0.5]
[1770059455452,32.73276314,104.51,104.47,0.5]
[1770059455954,8.81160727,104.5,104.47,0.5]
[1770059457959,18.38112099,104.5,104.47,0.5]
[1770059458860,18.38281707,104.48,104.45,0.5]
[1770059460149,8.81160727,104.47,104.45,0.5]
[1770059460533,8.81160727,104.48,104.45,0.5]
[1770059460737,18.382275,104.49,104.45,0.5]
[1770059460937,8.81160727,104.48,104.45,0.5]
[1770059461233,9.57066773,104.49,104.45,0.5]
[1770059461463,18.38006961,104.51,104.47,0.5]
[1770059461754,9.56480153,104.55,104.5,0.5]
[1770059462059,32.72731356,104.54,104.5,0.5]
[1770059462242,8.81160727,104.53,104.5,0.5]
[1770059463057,18.37842421,104.53,104.5,0.5]
[1770059464457,8.80923846,104.53,104.5,0.5]
[1770059465559,8.80923846,104.54,104.5,0.5]
[1770059465860,0.2,104.56,104.53,0.5]
[1770059466047,18.57083962,104.59,104.55,0.47734077]
[1770059466458,18.57083962,104.59,104.56,0.47734077]
[1770059466459,0.2,104.59,104.56,0.47734077]
[1770059466659,9.00923846,104.59,104.56,0.47734077]
[1770059467158,0.2,104.59,104.56,0.47734077]
[1770059467343,9.00923846,104.59,104.56,0.47734077]
[1770059467766,9.49907753,104.59,104.56,0.02093863]
[1770059468142,0.68983907,104.59,104.56,0.02093863]
[1770059469551,0.2,104.59,104.56,0.02093863]
[1770059472857,0.2,104.59,104.57,0.47734077]
[1770059473778,0.2,104.62,104.6,0.47734077]
[1770059474256,0.2,104.62,104.59,0.47734077]
[1770059474454,0.2,104.62,104.6,0.47734077]
[1770059474966,0.2,104.62,104.52,211.0631198]
[1770059474967,0.48983907,104.61,104.57,0.47734077]
[1770059475149,0.2,104.62,104.59,0.47734077]
[1770059475350,0.2,104.62,104.6,3.9943034]
[1770059475859,0.2,104.63,104.61,0.47734077]
[1770059476453,0.2,104.63,104.61,0.24923739]
[1770059476675,0.2,104.63,104.61,0.17676971]
[1770059477171,10.24749897,104.63,104.59,8.7886642]
[1770059477974,10.24749897,104.63,104.58,9.56171004]
[1770059477975,9.27850327,104.62,104.58,18.35037424]
[1770059478675,9.27850327,104.62,104.58,18.79340104]
[1770059479076,9.27850327,104.62,104.59,0.4430268]
[1770059479261,19.03616317,104.63,104.59,0.4430268]
[1770059481077,0.2,104.63,104.61,0.4430268]
[1770059481374,9.2671508,104.67,104.63,0.2430268]
[1770059481552,0.6784866,104.68,104.64,8.831691]
[1770059481758,0.2,104.68,104.65,0.0430268]
[1770059482054,0.2,104.68,104.66,8.831691]
[1770059482578,1e-08,104.68,104.67,18.34250006]
[1770059482756,0.2,104.7,104.67,8.7886642]
[1770059482962,0.7,104.7,104.66,8.7886642]
[1770059483262,0.7,104.7,104.66,9.5543048]
[1770059483458,0.2,104.7,104.67,18.34234257]
[1770059483859,0.2,104.7,104.67,9.55367837]
[1770059484080,0.7,104.7,104.66,18.34298576]
[1770059484283,9.2886642,104.69,104.64,9.5561221]
[1770059484468,9.2886642,104.69,104.64,18.3447863]
[1770059485070,9.2886642,104.69,104.65,18.34428782]
[1770059485272,9.4886642,104.7,104.65,18.34428782]
[1770059485569,0.7,104.7,104.66,8.7886642]
[1770059486477,0.2,104.7,104.67,8.7886642]
[1770059486676,0.2,104.7,104.66,8.7886642]
[1770059487379,0.2,104.7,104.66,18.34332603]
[1770059487577,0.7,104.7,104.66,18.34332603]
[1770059487774,9.4886642,104.7,104.66,8.7886642]
[1770059487977,0.5,104.69,104.65,18.34392357]
[1770059488365,9.4886642,104.7,104.66,9.55473164]
[1770059491380,0.5,104.67,104.62,24.17830459]
[1770059491581,9.2886642,104.66,104.62,18.34642867]
[1770059491772,9.2886642,104.66,104.62,9.55765839]
[1770059492479,8.7886642,104.65,104.62,9.55765839]
[1770059492679,9.2886642,104.66,104.62,9.55765839]
[1770059492876,8.7886642,104.64,104.61,9.55896162]
[1770059493070,9.2886642,104.64,104.6,18.34840851]
[1770059494280,9.2886642,104.63,104.59,8.7886642]
[1770059494493,0.5,104.67,104.62,8.7886642]
[1770059494662,9.2886642,104.66,104.61,18.34783201]
[1770059494861,18.84349909,104.66,104.61,18.34783201]
[1770059495290,9.2886642,104.66,104.62,9.55834579]
[1770059496072,9.2886642,104.66,104.61,18.34747567]
[1770059496370,9.2886642,104.64,104.6,18.3484665]
[1770059496591,0.5,104.64,104.6,18.3484665]
[1770059496891,0.5,104.64,104.61,9.55930951]
[1770059497290,18.8452963,104.64,104.59,18.34933326]
[1770059497477,9.2886642,104.63,104.58,18.35022058]
[1770059497784,0.5,104.6,104.57,18.35115048]
[1770059497997,9.2886642,104.6,104.57,9.56248628]